bitfinex-derivatives/quotes_BTCF0:USTF0_20251204
["timestamp","ask_amount","ask_price","bid_price","bid_amount"]
[1764858592296,0.0666784,92848.0,92847.0,0.0672882]
[1764858592495,0.0666784,92848.0,92847.0,0.09629897]
[1764858592898,0.0666784,92848.0,92847.0,0.0672882]
[1764858593105,0.0666784,92848.0,92847.0,0.09629897]
[1764858593710,0.0666784,92848.0,92847.0,0.08553077]
[1764858594509,0.0666784,92848.0,92847.0,0.05652]
[1764858600313,0.05591,92848.0,92847.0,0.08553077]
[1764858600513,0.05591,92848.0,92847.0,0.05652]
[1764858600708,0.05591,92848.0,92846.0,0.03977927]
[1764858600709,0.0666784,92847.0,92845.0,0.02901077]
[1764858600910,0.0666784,92847.0,92836.0,0.05810176]
[1764858600911,0.05591,92840.0,92837.0,0.02903459]
[1764858601111,0.0666812,92823.0,92811.0,0.0387345]
[1764858601310,0.05591,92807.0,92806.0,0.00026938]
[1764858601510,0.69619,92807.0,92806.0,0.00026938]
[1764858601905,0.69619,92807.0,92792.0,0.07396]
[1764858601906,0.05591,92793.0,92792.0,0.07396]
[1764858602115,0.0666847,92793.0,92792.0,0.07396]
[1764858602311,0.06676898,92793.0,92792.0,0.05652]
[1764858602612,0.05591,92790.0,92789.0,0.06760662]
[1764858602805,0.05591,92790.0,92789.0,0.05652]
[1764858603006,0.05591,92790.0,92783.0,0.05668163]
[1764858603007,0.05591,92784.0,92783.0,0.05668163]
[1764858603211,0.19833002,92784.0,92783.0,0.05668163]
[1764858603415,0.21802572,92784.0,92783.0,0.00016163]
[1764858603711,0.19910572,92784.0,92783.0,0.00016163]
[1764858604115,0.06910572,92784.0,92783.0,0.00516163]
[1764858604515,0.06910572,92784.0,92783.0,0.06393163]
[1764858605104,0.06910572,92784.0,92783.0,0.00716163]
[1764858605314,0.01085898,92793.0,92792.0,0.07403]
[1764858605514,0.0663956,92785.0,92784.0,0.05677]
[1764858605716,0.05562,92784.0,92783.0,0.00716163]
[1764858606015,0.05804002,92784.0,92783.0,0.03080163]
[1764858606222,0.05804002,92784.0,92783.0,0.00316163]
[1764858606519,0.05804002,92784.0,92783.0,0.05693163]
[1764858606709,0.10804002,92784.0,92783.0,0.00116163]
[1764858606910,0.11696002,92784.0,92783.0,0.00116163]
[1764858607317,0.05804002,92784.0,92783.0,0.00116163]
[1764858607518,0.05804002,92784.0,92783.0,0.05793163]
[1764858607921,0.05804002,92784.0,92783.0,0.05893163]
[1764858608813,0.55856002,92784.0,92783.0,0.05893163]
[1764858609617,0.61748002,92784.0,92783.0,0.00216163]
[1764858609812,0.0663977,92767.0,92766.0,0.0570395]
[1764858610025,0.56704198,92767.0,92766.0,0.0570395]
[1764858610324,0.61704198,92767.0,92766.0,0.0570395]
[1764858610515,0.56704198,92767.0,92766.0,0.0570395]
[1764858610713,0.61704198,92767.0,92766.0,0.0570395]
[1764858610911,0.56704198,92767.0,92766.0,0.0339095]
[1764858611122,0.56704198,92767.0,92766.0,0.0359095]
[1764858611319,0.61704198,92767.0,92766.0,0.0082695]
[1764858611521,0.61704198,92767.0,92766.0,0.0064074]
[1764858611914,0.61704198,92767.0,92766.0,0.0631774]
[1764858612114,8.428e-05,92767.0,92766.0,0.0631774]
[1764858612319,0.5307243,92767.0,92766.0,0.0631774]
[1764858612516,0.5587643,92767.0,92766.0,0.0631774]
[1764858613118,0.5031443,92767.0,92766.0,0.0631774]
[1764858613319,8.428e-05,92767.0,92766.0,0.0631774]
[1764858614116,0.00016163,92776.0,92775.0,0.05677]
[1764858614324,0.50092163,92776.0,92775.0,0.05677]
[1764858615026,0.00016163,92776.0,92775.0,0.05677]
[1764858615227,0.0107752,92789.0,92788.0,0.05677]
[1764858615722,0.38208,92790.0,92789.0,0.05677]
[1764858616125,0.0663951,92789.0,92788.0,0.3608]
[1764858616317,0.0663951,92789.0,92772.0,0.3608]
[1764858616318,0.0383565,92777.0,92776.0,0.07403]
[1764858616513,0.0673951,92789.0,92788.0,0.05677]
[1764858616725,0.5681951,92789.0,92788.0,0.001]
[1764858617318,0.5671951,92789.0,92788.0,0.0009158]
[1764858618322,0.0383575,92769.0,92767.0,0.00016163]
[1764858618518,0.0383575,92769.0,92768.0,0.07403]
[1764858618519,0.4271975,92769.0,92768.0,0.07403]
[1764858618718,0.4271975,92769.0,92768.0,0.05677]
[1764858619119,0.4271975,92769.0,92768.0,0.07403]
[1764858619321,0.50104,92773.0,92772.0,0.05677]
[1764858619629,0.00016163,92778.0,92777.0,0.05677]
[1764858619931,0.05820165,92778.0,92777.0,0.05677]
[1764858621426,0.0663975,92769.0,92768.0,0.006]
[1764858621626,0.0663975,92769.0,92768.0,0.008]
[1764858621627,0.56961752,92769.0,92768.0,0.008]
[1764858621823,0.56961752,92769.0,92768.0,0.002]
[1764858623027,0.57061752,92769.0,92768.0,0.008]
[1764858623928,0.05562,92768.0,92767.0,3e-08]
[1764858624129,0.05562,92745.0,92744.0,0.00011198]
[1764858624343,0.5118602,92745.0,92744.0,0.05688198]
[1764858624631,0.5674802,92745.0,92744.0,0.05688198]
[1764858624828,0.5674802,92745.0,92744.0,0.02924198]
[1764858625033,0.6310502,92745.0,92744.0,0.00011198]
[1764858625624,0.65410598,92745.0,92744.0,0.00011198]
[1764858625825,0.0799713,92736.0,92735.0,0.00016171]
[1764858626024,0.49319132,92736.0,92735.0,0.00016171]
[1764858626228,0.42962132,92736.0,92735.0,0.05693171]
[1764858626625,0.00242002,92736.0,92735.0,0.06771311]
[1764858626830,0.50142681,92736.0,92735.0,0.06771311]
[1764858627030,0.00010681,92736.0,92735.0,0.05693171]
[1764858627222,0.00252683,92736.0,92735.0,0.05693171]
[1764858627422,0.05814683,92736.0,92735.0,0.05693171]
[1764858627631,0.05814683,92736.0,92735.0,0.02780171]
[1764858627829,0.05914683,92736.0,92735.0,0.03180171]
[1764858628129,0.12271683,92736.0,92735.0,0.00416171]
[1764858628335,0.14580849,92736.0,92735.0,0.00416171]
[1764858628532,0.59660849,92736.0,92735.0,1e-08]
[1764858628836,0.05714,92701.0,92700.0,0.07454]
[1764858629032,0.0107859,92697.0,92696.0,0.05728]
[1764858629228,0.42880792,92697.0,92696.0,0.05728]
[1764858629821,0.06800792,92697.0,92696.0,0.05728]
[1764858630033,8.202e-05,92697.0,92696.0,0.05728]
[1764858630231,0.00250204,92697.0,92696.0,0.05728]
[1764858630530,0.36830204,92697.0,92696.0,0.05828]
[1764858630937,0.43826204,92697.0,92696.0,0.001]
[1764858631236,0.55826204,92697.0,92696.0,0.001]
[1764858631532,0.55826204,92697.0,92687.0,0.05744181]
[1764858631533,0.0679269,92688.0,92687.0,0.05744181]
[1764858631732,0.07034692,92688.0,92687.0,0.05744181]
[1764858631930,0.01320692,92688.0,92687.0,0.05744181]
[1764858632232,0.54410692,92688.0,92687.0,0.05744181]
[1764858632440,0.51488692,92688.0,92687.0,0.05744181]
[1764858633136,0.01820692,92688.0,92687.0,0.05844181]
[1764858633341,0.51992692,92688.0,92687.0,0.05844181]
[1764858633737,0.56824002,92688.0,92687.0,0.03086181]
[1764858633933,0.005,92688.0,92687.0,0.05933181]
[1764858635033,0.06242,92688.0,92687.0,0.05933181]
[1764858635233,0.56418,92688.0,92687.0,0.00116181]
[1764858636042,0.005,92688.0,92687.0,0.05667181]
[1764858636340,0.56429198,92688.0,92687.0,0.00116181]
[1764858636533,0.69429198,92688.0,92687.0,0.00116181]
[1764858636936,0.068207,92687.0,92686.0,4e-08]
[1764858637138,0.068207,92687.0,92662.0,0.3608]
[1764858637139,0.0682096,92665.0,92664.0,0.04466]
[1764858637339,0.3715879,92679.0,92678.0,0.05551]
[1764858637540,0.51516792,92679.0,92678.0,0.05551]
[1764858637939,0.01320792,92679.0,92678.0,0.05551]
[1764858638142,0.00516181,92688.0,92687.0,0.05551]
[1764858638442,0.46540422,92688.0,92687.0,0.05551]
[1764858638643,0.51782422,92688.0,92687.0,0.05551]
[1764858638846,0.05742,92687.0,92686.0,0.001]
[1764858639046,0.05984002,92687.0,92686.0,0.001]
[1764858639249,0.05984002,92687.0,92678.0,0.001]
[1764858639443,0.00242002,92679.0,92678.0,0.05651]
[1764858639637,0.01320792,92679.0,92678.0,0.05651]
[1764858639837,0.07062792,92679.0,92678.0,0.001]
[1764858640037,0.43142792,92679.0,92678.0,0.001]
[1764858640640,0.43142792,92679.0,92669.0,0.00016181]
[1764858640641,0.068209,92670.0,92669.0,0.05567181]
[1764858640945,0.00012984,92670.0,92669.0,0.05567181]
[1764858641149,0.05996986,92670.0,92669.0,0.00016181]
[1764858641340,0.00254986,92670.0,92669.0,0.05567181]
[1764858641936,0.03008986,92670.0,92669.0,0.05567181]
[1764858642342,0.03008986,92670.0,92669.0,0.05667181]
[1764858642542,0.00012984,92670.0,92669.0,0.05667181]
[1764858642741,0.00312984,92670.0,92669.0,0.05767181]
[1764858645055,0.03066984,92670.0,92669.0,0.05767181]
[1764858645254,0.06054984,92670.0,92669.0,0.05767181]
[1764858646347,0.06054984,92670.0,92669.0,0.00216181]
[1764858646552,0.56282984,92670.0,92669.0,0.00216181]
[1764858646752,0.53294984,92670.0,92669.0,0.05767181]
[1764858647045,0.00312984,92670.0,92669.0,0.05767181]
[1764858647844,0.05989984,92670.0,92669.0,0.05767181]
[1764858648044,0.05989984,92670.0,92669.0,0.00216181]
[1764858649153,0.42069984,92670.0,92669.0,0.00216181]
[1764858649454,0.55069984,92670.0,92669.0,0.00216181]
[1764858649952,0.56069984,92670.0,92669.0,0.00216181]
[1764858650942,0.42069984,92670.0,92669.0,0.00216181]
[1764858651849,0.42069984,92670.0,92655.0,0.02891094]
[1764858651850,0.0282,92647.0,92646.0,0.41771985]
[1764858652057,0.03908054,92647.0,92646.0,0.41771985]
[1764858652358,0.06831054,92647.0,92646.0,0.41771985]
[1764858652950,0.06831054,92647.0,92646.0,0.42671985]
[1764858653156,0.43111054,92647.0,92646.0,0.06991985]
[1764858653353,0.43111054,92647.0,92646.0,0.01326985]
[1764858654062,0.57111054,92647.0,92646.0,0.01326985]
[1764858654260,0.59418404,92647.0,92646.0,0.01326985]
[1764858654555,0.45418404,92647.0,92646.0,0.01326985]
[1764858655060,0.59418404,92647.0,92646.0,0.01326985]
[1764858655559,0.99318404,92647.0,92646.0,0.00507141]
[1764858655758,0.99318404,92647.0,92646.0,1.41e-06]
[1764858655948,0.45318404,92647.0,92646.0,1.41e-06]
[1764858656150,0.95578404,92647.0,92646.0,0.00200141]
[1764858656548,0.95582404,92647.0,92646.0,0.00200141]
[1764858656752,1.08582404,92647.0,92646.0,0.00200141]
[1764858658550,0.95582404,92647.0,92646.0,0.00200141]
[1764858658766,0.99590404,92647.0,92646.0,0.00200141]
[1764858659259,0.95590404,92647.0,92646.0,0.00200141]
[1764858659453,0.95590404,92647.0,92646.0,0.05865141]
[1764858660259,0.95590404,92647.0,92646.0,0.00200141]
[1764858660459,1.40590404,92647.0,92646.0,1e-08]
[1764858661054,0.0682237,92629.0,92628.0,0.00010249]
[1764858661253,1.094994,92629.0,92628.0,0.00010249]
[1764858661661,1.455794,92629.0,92628.0,0.00010249]
[1764858662269,1.456794,92629.0,92628.0,0.00410249]
[1764858662471,0.0682263,92607.0,92606.0,0.41771996]
[1764858662664,0.5710263,92607.0,92606.0,0.41771996]
[1764858663567,0.64422827,92607.0,92606.0,0.00026996]
[1764858663767,0.0107996,92579.0,92578.0,0.05809]
[1764858663974,0.01088701,92579.0,92578.0,0.05809]
[1764858664269,0.06844701,92579.0,92578.0,0.05809]
[1764858664566,0.00016199,92588.0,92578.0,0.45809]
[1764858664768,0.0107957,92613.0,92602.0,0.0107968]
[1764858664964,0.0402543,92624.0,92623.0,0.02935]
[1764858665160,0.02946,92617.0,92616.0,0.07602]
[1764858665467,0.00242002,92617.0,92616.0,0.07602]
[1764858665671,0.06007942,92617.0,92604.0,0.01793]
[1764858665972,0.0402562,92608.0,92607.0,0.05825199]
[1764858666173,0.51649622,92608.0,92607.0,0.05825199]
[1764858666768,0.62405622,92608.0,92607.0,0.02951199]
[1764858666975,0.57405622,92608.0,92607.0,0.00016199]
[1764858667369,0.62405622,92608.0,92607.0,0.00016199]
[1764858667872,0.0683591,92583.0,92582.0,0.39015]
[1764858668064,0.00013399,92583.0,92582.0,0.41889]
[1764858668465,0.00255401,92583.0,92582.0,0.41889]
[1764858668664,0.00013399,92583.0,92582.0,0.41889]
[1764858668874,0.00255401,92583.0,92582.0,0.41889]
[1764858669061,0.00013399,92583.0,92582.0,0.4316892]
[1764858669266,0.00013399,92583.0,92582.0,0.42089]
[1764858669676,0.00016199,92592.0,92591.0,0.05809]
[1764858669867,0.00016199,92592.0,92591.0,0.41889]
[1764858670067,0.3608,92614.0,92613.0,0.05809]
[1764858670068,0.3715955,92614.0,92613.0,0.05809]
[1764858670273,0.0683565,92605.0,92604.0,0.01793]
[1764858670469,0.0107979,92593.0,92592.0,0.07602]
[1764858670669,0.06845169,92593.0,92592.0,0.02935]
[1764858670975,0.0402591,92583.0,92582.0,0.06309]
[1764858671163,0.0402591,92583.0,92582.0,0.06009]
[1764858671365,0.0402591,92583.0,92582.0,0.05809]
[1764858671562,0.0107988,92587.0,92586.0,0.05809]
[1764858671767,0.36289379,92593.0,92592.0,0.07702]
[1764858672473,0.42045379,92593.0,92592.0,0.001]
[1764858672977,0.55045379,92593.0,92592.0,0.001]
[1764858673173,0.42045379,92593.0,92592.0,0.002]
[1764858673475,0.46845379,92593.0,92592.0,0.001]
[1764858673865,0.41845379,92593.0,92592.0,0.001]
[1764858674065,0.42245379,92593.0,92592.0,0.03135]
[1764858674277,0.36489379,92593.0,92592.0,0.06009]
[1764858674477,0.39435379,92593.0,92592.0,0.06009]
[1764858674681,0.47245379,92593.0,92592.0,0.002]
[1764858674978,0.42245379,92593.0,92592.0,0.002]
[1764858675371,0.47245379,92593.0,92592.0,0.06009]
[1764858675568,0.36489379,92593.0,92592.0,0.06009]
[1764858676466,0.39435379,92593.0,92592.0,0.06009]
[1764858676671,0.37569169,92593.0,92592.0,0.06009]
[1764858676970,0.43325169,92593.0,92592.0,0.06009]
[1764858677173,0.43325169,92593.0,92592.0,0.002]
[1764858677366,0.37569169,92593.0,92592.0,0.06009]
[1764858677565,0.36489379,92593.0,92592.0,0.06009]
[1764858678085,0.36489379,92593.0,92592.0,0.0888181]
[1764858678375,3.79e-06,92593.0,92592.0,0.4496181]
[1764858678973,0.00242381,92593.0,92592.0,0.0888181]
[1764858679180,0.00242381,92593.0,92592.0,0.07802]
[1764858679476,3.79e-06,92593.0,92592.0,0.38073]
[1764858680779,0.00242381,92593.0,92592.0,0.38073]
[1764858681085,0.08302679,92593.0,92592.0,0.002]
[1764858681781,0.13302679,92593.0,92592.0,0.002]
[1764858682176,0.49382679,92593.0,92592.0,0.002]
[1764858682684,0.89038679,92593.0,92592.0,0.06009]
[1764858682885,0.94794679,92593.0,92592.0,0.002]
[1764858683372,0.89038679,92593.0,92592.0,0.06009]
[1764858683573,0.91984679,92593.0,92592.0,0.06009]
[1764858684177,0.99794679,92593.0,92592.0,0.002]
[1764858684786,0.94794679,92593.0,92592.0,0.002]
[1764858684985,1.08794679,92593.0,92592.0,0.002]
[1764858685294,1.44874679,92593.0,92592.0,0.002]
[1764858685476,1.30874679,92593.0,92592.0,0.002]
[1764858685678,0.74706679,92593.0,92592.0,0.06009]
[1764858685882,1.26214469,92593.0,92592.0,0.06009]
[1764858686082,0.74464677,92593.0,92592.0,0.0708881]
[1764858686382,3.79e-06,92593.0,92592.0,0.0127981]
[1764858687576,3.79e-06,92593.0,92592.0,0.4127981]
[1764858687787,0.00242381,92593.0,92592.0,0.4127981]
[1764858687974,3.79e-06,92593.0,92592.0,0.002]
[1764858688178,0.05998381,92593.0,92592.0,0.002]
[1764858688378,0.58390359,92593.0,92592.0,0.002]
[1764858689388,0.50176217,92593.0,92592.0,0.002]
[1764858690380,0.47366217,92593.0,92592.0,0.06009]
[1764858690586,0.44420217,92593.0,92592.0,0.06009]
[1764858691285,0.38634359,92593.0,92592.0,0.06009]
[1764858691883,0.38392357,92593.0,92592.0,0.06009]
[1764858693178,3.57e-06,92593.0,92592.0,0.06009]
[1764858693379,0.01095899,92602.0,92601.0,0.05809]
[1764858693682,0.00016199,92602.0,92601.0,0.05809]
[1764858694379,0.3608,92608.0,92607.0,0.05572]
[1764858694576,0.3608,92608.0,92607.0,0.0665163]
[1764858694778,0.4296062,92608.0,92607.0,0.02851]
[1764858695075,0.4008062,92608.0,92607.0,0.05572]
[1764858695276,0.3715962,92608.0,92607.0,0.05572]
[1764858695990,0.3725962,92608.0,92607.0,0.05572]
[1764858696684,0.3725962,92608.0,92607.0,0.05672]
[1764858696889,0.3785962,92608.0,92607.0,0.05672]
[1764858697388,0.4366062,92608.0,92607.0,0.001]
[1764858697585,0.4866062,92608.0,92607.0,0.001]
[1764858697779,0.9909662,92608.0,92607.0,0.001]
[1764858698481,0.9409662,92608.0,92607.0,0.001]
[1764858698782,0.9909662,92608.0,92607.0,0.001]
[1764858698984,1.0809662,92608.0,92607.0,0.001]
[1764858699191,0.9409662,92608.0,92607.0,0.001]
[1764858699383,0.9409662,92608.0,92607.0,0.02951]
[1764858699384,0.4366062,92608.0,92607.0,0.02951]
[1764858699890,0.8829962,92608.0,92607.0,0.05672]
[1764858700086,0.3785962,92608.0,92607.0,0.05672]
[1764858700991,0.4366062,92608.0,92607.0,0.05672]
[1764858701381,0.3785962,92608.0,92607.0,0.05672]
[1764858702381,0.3678,92608.0,92607.0,0.05672]
[1764858703588,0.007,92608.0,92607.0,0.0675163]
[1764858704480,0.05877199,92617.0,92607.0,0.001]
[1764858704686,0.0107962,92611.0,92610.0,0.05707]
[1764858704886,0.0694062,92611.0,92610.0,0.05707]
[1764858705081,0.0107962,92611.0,92610.0,0.05707]
[1764858705292,0.0694062,92611.0,92610.0,0.05707]
[1764858705493,0.09245635,92611.0,92610.0,0.05707]
[1764858705986,0.09245635,92611.0,92607.0,0.001]
[1764858705987,0.0694062,92608.0,92607.0,0.001]
[1764858706188,0.0107975,92598.0,92597.0,0.05707]
[1764858707294,0.0127975,92598.0,92597.0,0.05807]
[1764858707896,0.0714075,92598.0,92597.0,0.001]
[1764858708282,0.09445379,92598.0,92597.0,0.001]
[1764858709890,0.0694079,92593.0,92592.0,0.00016199]
[1764858710189,0.73915421,92593.0,92592.0,0.00016199]
[1764858710390,1.46075421,92593.0,92592.0,1.99e-06]
[1764858710592,1.32075421,92593.0,92592.0,1.99e-06]
[1764858710896,1.37175421,92593.0,92592.0,0.00300199]
[1764858711092,1.32175421,92593.0,92592.0,0.00300199]
[1764858711581,1.32179421,92593.0,92592.0,0.00300199]
[1764858711990,1.37179421,92593.0,92592.0,0.00400199]
[1764858712189,1.32179421,92593.0,92592.0,0.00400199]
[1764858713596,1.46179421,92593.0,92592.0,0.00400199]
[1764858714798,1.46179421,92593.0,92592.0,1.99e-06]
[1764858714996,1.46179421,92593.0,92566.0,0.00027008]
[1764858714997,0.069411,92567.0,92566.0,0.00027008]
[1764858715190,0.73669729,92567.0,92566.0,0.00027008]
[1764858715590,1.45829729,92567.0,92566.0,0.00027008]
[1764858715993,1.45849729,92567.0,92566.0,0.00027008]
[1764858716193,1.46049729,92567.0,92566.0,0.01827008]
[1764858716400,0.069412,92558.0,92557.0,0.00016199]
[1764858716697,0.45567831,92558.0,92557.0,0.00016199]
[1764858717291,0.96011831,92558.0,92557.0,0.00016199]
[1764858717492,0.96111831,92558.0,92557.0,0.00616199]
[1764858717692,1.09111831,92558.0,92557.0,0.00616199]
[1764858718091,0.96111831,92558.0,92557.0,0.00616199]
[1764858718692,0.96111831,92558.0,92557.0,0.00716199]
[1764858718894,1.09111831,92558.0,92557.0,0.00716199]
[1764858719499,0.0694149,92533.0,92532.0,0.02916]
[1764858719702,0.92389,92533.0,92521.0,0.0108063]
[1764858719898,0.92389,92533.0,92523.0,0.0108061]
[1764858720092,0.00242002,92524.0,92523.0,0.05707]
[1764858720293,0.42183002,92524.0,92512.0,0.3608]
[1764858720596,0.42183002,92524.0,92519.0,0.05707]
[1764858720597,0.01322652,92520.0,92519.0,0.05707]
[1764858720786,0.04218652,92520.0,92519.0,0.06798454]
[1764858721102,0.0108068,92517.0,92516.0,0.02916]
[1764858721395,0.00242002,92517.0,92516.0,0.05707]
[1764858721600,8.558e-05,92523.0,92522.0,0.05707]
[1764858721893,8.558e-05,92523.0,92521.0,0.0287163]
[1764858721894,0.002,92533.0,92532.0,0.0678751]
[1764858722101,0.40056,92548.0,92547.0,0.05707]
[1764858722300,0.40298002,92548.0,92547.0,0.05707]
[1764858722501,0.43194002,92548.0,92547.0,0.05707]
[1764858722902,0.40298002,92548.0,92547.0,0.07498]
[1764858723100,0.0108037,92544.0,92539.0,0.0108042]
[1764858723296,0.0108037,92544.0,92538.0,0.00016208]
[1764858723297,0.0108037,92544.0,92543.0,0.05707]
[1764858723492,0.0694142,92539.0,92538.0,0.00016208]
[1764858723706,0.07183422,92539.0,92538.0,0.00016208]
[1764858725103,0.07183422,92539.0,92538.0,0.00116208]
[1764858725402,0.07383422,92539.0,92538.0,0.00116208]
[1764858725999,0.11383422,92539.0,92538.0,0.00116208]
[1764858726198,0.21383422,92539.0,92538.0,0.00099801]
[1764858726901,0.07383422,92539.0,92538.0,0.00099801]
[1764858727097,0.12383422,92539.0,92538.0,0.00099801]
[1764858727700,0.07383422,92539.0,92538.0,0.00099801]
[1764858727900,0.12383422,92539.0,92538.0,0.00099801]
[1764858729100,0.07383422,92539.0,92538.0,0.00099801]
[1764858729304,0.56779002,92539.0,92538.0,0.05766801]
[1764858729505,0.50676,92539.0,92538.0,0.05766801]
[1764858729803,0.002,92539.0,92538.0,0.05766801]
[1764858730008,0.002,92539.0,92538.0,0.45766801]
[1764858730197,0.2187299,92560.0,92556.0,0.05667]
[1764858730505,0.0323921,92557.0,92556.0,0.05667]
[1764858731403,0.05828,92546.0,92545.0,0.3608]
[1764858731607,0.2187299,92555.0,92554.0,0.05667]
[1764858731910,0.01996418,92557.0,92556.0,0.05667]
[1764858732206,0.0107987,92587.0,92556.0,0.05667]
[1764858732207,0.0108,92576.0,92556.0,0.05667]
[1764858732394,0.0107997,92579.0,92578.0,0.05667]
[1764858733129,0.0690809,92569.0,92568.0,0.05667]
[1764858733300,0.0406109,92569.0,92568.0,0.05667]
[1764858734202,0.0108009,92569.0,92568.0,0.05667]
[1764858734903,0.0208009,92569.0,92568.0,0.05667]
[1764858735101,0.0790809,92569.0,92568.0,0.05667]
[1764858735306,0.0690809,92569.0,92568.0,0.05667]
[1764858735497,0.0800809,92569.0,92568.0,0.05667]
[1764858735695,0.0218009,92569.0,92568.0,0.05667]
[1764858736208,0.011,92569.0,92568.0,0.05667]
[1764858736614,0.00016208,92578.0,92577.0,0.0674698]
[1764858736805,0.00016208,92578.0,92577.0,0.4282698]
[1764858737701,0.00016208,92578.0,92577.0,0.41747]
[1764858738102,0.0107983,92590.0,92589.0,0.05667]
[1764858738306,0.0107977,92596.0,92594.0,0.0107977]
[1764858738501,0.0107977,92596.0,92595.0,0.05667]
[1764858738702,0.0406077,92596.0,92595.0,0.05667]
[1764858738913,0.0107977,92596.0,92595.0,0.05667]
[1764858739104,0.0107977,92596.0,92594.0,0.01117125]
[1764858739105,0.0406086,92587.0,92586.0,0.02980199]
[1764858739302,0.07149862,92587.0,92586.0,0.00016199]
[1764858739707,0.07149862,92587.0,92586.0,0.02980199]
[1764858740508,0.07149862,92587.0,92586.0,0.05683199]
[1764858740907,0.07249862,92587.0,92586.0,0.00016199]
[1764858741214,0.12249862,92587.0,92586.0,0.00016199]
[1764858741411,0.07249862,92587.0,92586.0,0.00016199]
[1764858741616,0.08049862,92587.0,92586.0,0.00016199]
[1764858742013,0.21249862,92587.0,92586.0,0.00016199]
[1764858742202,0.08049862,92587.0,92586.0,0.00016199]
[1764858742403,0.07949862,92587.0,92586.0,0.00016199]
[1764858742608,0.07249862,92587.0,92586.0,0.02980199]
[1764858742812,0.07749862,92587.0,92586.0,0.05783199]
[1764858743005,0.12749862,92587.0,92586.0,0.03080199]
[1764858743211,0.21649862,92587.0,92586.0,0.00083792]
[1764858743407,0.0690805,92571.0,92570.0,0.3608]
[1764858743608,0.0690816,92562.0,92561.0,0.0679137]
[1764858743807,0.00242002,92562.0,92561.0,0.05667]
[1764858744009,0.0108012,92566.0,92565.0,0.05667]
[1764858744209,0.0406112,92566.0,92565.0,0.05667]
[1764858744419,0.3608,92571.0,92570.0,0.05667]
[1764858745017,0.3716005,92571.0,92570.0,0.05667]
[1764858745520,0.4298805,92571.0,92570.0,0.05667]
[1764858745715,0.4308805,92571.0,92570.0,0.03264]
[1764858745916,0.4308805,92571.0,92570.0,0.003]
[1764858746112,0.0108016,92562.0,92561.0,0.001]
[1764858746312,0.07150162,92562.0,92561.0,0.001]
[1764858746509,0.43230162,92562.0,92561.0,0.001]
[1764858747006,0.42150002,92562.0,92556.0,0.00016199]
[1764858747212,0.07150212,92557.0,92556.0,0.00016199]
[1764858747813,0.00242002,92557.0,92556.0,0.07323199]
[1764858748018,0.3608,92562.0,92561.0,0.05667]
[1764858748219,0.8656,92562.0,92561.0,0.0674717]
[1764858748514,0.5058,92562.0,92561.0,0.06167]
[1764858748724,0.001,92562.0,92561.0,0.06167]
[1764858748910,0.00242002,92562.0,92561.0,0.05767]
[1764858749113,0.06070002,92562.0,92561.0,0.001]
[1764858749925,0.06170002,92562.0,92561.0,0.006]
[1764858750418,0.00342002,92562.0,92561.0,0.06267]
[1764858750922,0.001,92562.0,92561.0,0.0734717]
[1764858751309,0.00342002,92562.0,92561.0,0.06267]
[1764858751515,0.05928,92562.0,92561.0,0.006]
[1764858751913,0.001,92562.0,92561.0,0.06267]
[1764858752119,0.01422162,92562.0,92561.0,0.06267]
[1764858752520,0.07250162,92562.0,92561.0,0.006]
[1764858753320,0.12250162,92562.0,92561.0,0.006]
[1764858753624,0.14553107,92562.0,92561.0,0.006]
[1764858753827,0.0684421,92557.0,92556.0,0.00016199]
[1764858754025,0.73865157,92557.0,92556.0,0.00016199]
[1764858754416,0.64865157,92557.0,92556.0,0.00016199]
[1764858754826,0.59865157,92557.0,92556.0,0.00016199]
[1764858755012,0.63965157,92557.0,92556.0,0.00616199]
[1764858755727,0.23489157,92557.0,92556.0,0.00616199]
[1764858755924,0.59961157,92557.0,92556.0,0.00616199]
[1764858756125,0.73961157,92557.0,92556.0,0.00616199]
[1764858756327,0.59961157,92557.0,92556.0,0.00616199]
[1764858756629,0.73961157,92557.0,92556.0,0.00616199]
[1764858757019,0.23489157,92557.0,92556.0,0.00616199]
[1764858757331,0.02402945,92557.0,92556.0,0.08077199]
[1764858757625,0.001,92557.0,92556.0,0.08077199]
[1764858757829,0.05967002,92557.0,92556.0,0.06293199]
[1764858758233,0.03184002,92557.0,92556.0,0.06293199]
[1764858758421,0.001,92557.0,92556.0,0.08077199]
[1764858760324,0.03184002,92557.0,92556.0,0.06293199]
[1764858760524,0.001,92557.0,92556.0,0.08077199]
[1764858760727,0.00342002,92557.0,92556.0,0.08077199]
[1764858761929,0.06130002,92557.0,92556.0,0.00616199]
[1764858762128,0.06130002,92557.0,92556.0,0.06150199]
[1764858762326,0.001,92557.0,92556.0,0.08896429]
[1764858762527,0.05808075,92583.0,92574.0,0.0661402]
[1764858762722,0.3608,92585.0,92584.0,0.066139]
[1764858762918,0.38387176,92585.0,92584.0,0.066139]
[1764858763131,0.3608,92594.0,92593.0,0.0661379]
[1764858763324,0.38386955,92594.0,92593.0,0.0661379]
[1764858763524,0.38386955,92594.0,92593.0,0.05534]
[1764858763930,0.3608,92594.0,92593.0,0.05534]
[1764858764832,0.3698,92594.0,92593.0,0.05534]
[1764858765129,0.39847,92594.0,92593.0,0.05534]
[1764858765434,0.40047,92594.0,92593.0,0.05534]
[1764858765830,0.3718,92594.0,92593.0,0.05534]
[1764858767021,0.3825978,92594.0,92593.0,0.05534]
[1764858767731,0.011,92594.0,92593.0,0.05534]
[1764858768035,0.00016199,92603.0,92602.0,0.0661369]
[1764858768335,0.0107946,92622.0,92621.0,0.05534]
[1764858768632,0.38947,92626.0,92625.0,0.0661341]
[1764858768824,0.41249756,92626.0,92625.0,0.05534]
[1764858769021,0.3608,92626.0,92625.0,0.072]
[1764858769534,0.3608,92626.0,92625.0,0.05534]
[1764858770035,0.38947,92626.0,92625.0,0.05534]
[1764858770231,0.3715941,92626.0,92625.0,0.072]
[1764858770437,0.3608,92626.0,92625.0,0.072]
[1764858770634,0.3608,92626.0,92625.0,0.0827942]
[1764858770830,0.00016199,92635.0,92634.0,0.05534]
[1764858771030,0.00258201,92635.0,92634.0,0.05534]
[1764858771227,0.00016199,92635.0,92634.0,0.05534]
[1764858772032,0.03325201,92635.0,92634.0,0.05534]
[1764858773034,0.00216199,92635.0,92634.0,0.05534]
[1764858773427,0.00016199,92635.0,92634.0,0.05534]
[1764858773628,0.00916199,92635.0,92634.0,0.05634]
[1764858774031,0.3608,92645.0,92644.0,0.066132]
[1764858774338,0.27537138,92680.0,92644.0,0.066132]